fUSD/lending_fUSD_20240925
["ID","MTS","AMOUNT","RATE_DAILY","PERIOD"]
[339182225,1727277054292,772.91,0.00021999,120]
[339182226,1727277054342,500.0,0.00021999,120]
[339182228,1727277054379,772.91,0.00021999,120]
[339182229,1727277054411,500.0,0.00021999,120]
[339182230,1727277054447,459.30063128,0.00021999,120]
[339182232,1727277054497,772.91,0.00021999,120]
[339182234,1727277054534,772.91,0.00021999,120]
[339182236,1727277054580,772.91,0.00021999,120]
[339182237,1727277054594,-500.0,0.00012998,2]
[339182238,1727277054604,-517.5898313,0.00012998,2]
[339182239,1727277054614,-500.0,0.00012998,2]
[339182240,1727277054623,-17496.42606995,0.00013,2]
[339182243,1727277054735,772.91,0.00021999,120]
[339182245,1727277054796,772.91,0.00021999,120]
[339182247,1727277054864,772.91,0.00021999,120]
[339182248,1727277054924,772.91,0.00021999,120]
[339182250,1727277054986,773.03322435,0.00021999,120]
[339182252,1727277055003,-377.59544964,0.00013,2]
[339182253,1727277055020,-57765.02022936,0.00013,2]
[339182254,1727277055036,-4310.63802134,0.00013,2]
[339182256,1727277055049,-8776.47216038,0.00013,2]
[339182257,1727277055062,-6363.04403952,0.00013,2]
[339182258,1727277055090,-31481.25757003,0.00013,2]
[339182259,1727277055102,-24338.07392305,0.00013,2]
[339182260,1727277055117,-6401.33493788,0.00013,2]
[339182262,1727277055128,-921.79114643,0.00013,2]
[339182263,1727277055141,-683.48217557,0.00013,2]
[339182283,1727277059054,510.4806431,0.00011102,2]
[339182320,1727277065015,247.33936942,0.00010082,2]
[339182321,1727277065038,150.0,0.00010082,2]
[339182322,1727277065059,102.66063058,0.00010082,2]
[339182563,1727277107452,1764.5,0.00021999,120]
[339182565,1727277107953,1764.5,0.00021999,120]
[339182567,1727277108266,1764.5,0.00021999,120]
[339182571,1727277108936,1764.5,0.00021999,120]
[339182574,1727277109268,1764.5,0.00021999,120]
[339182575,1727277109582,1764.5,0.00021999,120]
[339182576,1727277109918,1764.5,0.00021999,120]
[339182577,1727277110253,1764.5,0.00021999,120]
[339182579,1727277110593,1764.5,0.00021999,120]
[339182581,1727277110911,1764.5,0.00021999,120]
[339182583,1727277111264,1764.5,0.00021999,120]
[339182585,1727277111659,1764.5,0.00021999,120]
[339182587,1727277112028,1764.5,0.00021999,120]
[339182589,1727277112334,1764.5,0.00021999,120]
[339182591,1727277112649,1764.5,0.00021999,120]
[339182594,1727277112976,1764.5,0.00021999,120]
[339182596,1727277113304,1764.5,0.00021999,120]
[339182599,1727277113635,1764.5,0.00021999,120]
[339182604,1727277114067,1764.5,0.00021999,120]
[339182606,1727277114259,500.0,0.00010082,2]
[339182608,1727277114423,1764.5,0.00021999,120]
[339182612,1727277114746,1764.5,0.00021999,120]
[339182617,1727277115336,1764.5,0.00021999,120]
[339182619,1727277115534,1764.5,0.00021999,120]
[339182623,1727277115855,1764.59307504,0.00021999,120]
[339182729,1727277132794,500.0,0.00021999,120]
[339182799,1727277146421,500.0,0.00021999,120]
[339182832,1727277149992,500.0,0.00021999,120]
[339182835,1727277150324,500.0,0.00021999,120]
[339182838,1727277150674,500.0,0.00021999,120]
[339182840,1727277151004,500.0,0.00021999,120]
[339182842,1727277151355,409.09,0.00021999,120]
[339182897,1727277161573,150.0,0.0001102,2]
[339182898,1727277161597,150.0,0.0001102,2]
[339182899,1727277161618,150.0,0.0001102,2]
[339182900,1727277161640,150.0,0.0001102,2]
[339182901,1727277161661,150.0,0.0001102,2]
[339182902,1727277161684,3558.203,0.0001102,2]
[339183032,1727277177471,500.0,0.00021999,120]
[339183034,1727277177741,500.0,0.00021999,120]
[339183037,1727277178167,500.0,0.00021999,120]
[339183041,1727277178726,500.0,0.00021999,120]
[339183043,1727277179088,500.0,0.00021999,120]
[339183046,1727277179437,500.0,0.00021999,120]
[339183047,1727277179773,484.44,0.00021999,120]
[339183057,1727277182062,500.0,0.00021999,120]
[339183060,1727277182418,500.0,0.00021999,120]
[339183079,1727277185343,500.0,0.00021999,120]
[339183082,1727277185718,500.0,0.00021999,120]
[339183085,1727277186090,500.0,0.00021999,120]
[339183086,1727277186215,500.0,0.00021999,120]
[339183088,1727277186445,500.0,0.00021999,120]
[339183089,1727277186556,500.0,0.00021999,120]
[339183091,1727277186808,500.0,0.00021999,120]
[339183092,1727277186874,500.0,0.00021999,120]
[339183094,1727277187168,500.0,0.00021999,120]
[339183095,1727277187204,500.0,0.00021999,120]
[339183099,1727277187639,500.0,0.00021999,120]
[339183100,1727277187675,500.0,0.00021999,120]
[339183101,1727277187854,460.97,0.00021999,120]
[339183102,1727277188171,500.0,0.00021999,120]
[339183103,1727277188524,500.0,0.00021999,120]
[339183104,1727277188874,500.0,0.00021999,120]
[339183105,1727277189260,500.0,0.00021999,120]
[339183106,1727277189622,500.0,0.00021999,120]
[339183107,1727277190009,500.0,0.00021999,120]
[339183110,1727277190416,500.0,0.00021999,120]
[339183112,1727277190804,500.0,0.00021999,120]
[339183115,1727277191152,500.0,0.00021999,120]
[339183118,1727277191586,500.0,0.00021999,120]
[339183123,1727277191956,500.0,0.00021999,120]
[339183128,1727277192307,311.320849,0.00021999,120]
[339183137,1727277193695,500.0,0.00021999,120]
[339183140,1727277194034,500.0,0.00021999,120]
[339183142,1727277194409,500.0,0.00021999,120]
[339183144,1727277194747,592.57529531,0.00021999,120]
[339183195,1727277204804,200.0,0.00020955,120]
[339183298,1727277216021,150.0,0.00010082,2]
[339183299,1727277216045,150.0,0.00010082,2]
[339183300,1727277216067,150.0,0.00010082,2]
[339183301,1727277216096,50.0,0.00010082,2]
[339183440,1727277246255,150.0,0.00010053,2]
[339183441,1727277246286,150.0,0.00010053,2]
[339183442,1727277246313,57.6,0.00010053,2]
[339183490,1727277263754,471.1,0.00021999,120]
[339183501,1727277266640,500.0,0.00021999,120]
[339183504,1727277267316,500.0,0.00021999,120]
[339183558,1727277286576,500.0,0.00021999,120]
[339183559,1727277287133,500.0,0.00021999,120]
[339183613,1727277302304,500.0,0.00021999,120]
[339183617,1727277302634,500.0,0.00021999,120]
[339183652,1727277307579,500.0,0.00021999,120]
[339183654,1727277307895,500.0,0.00021999,120]
[339183665,1727277310812,500.0,0.00021999,120]
[339183668,1727277311156,500.0,0.00021999,120]
[339183675,1727277313486,500.0,0.00021999,120]
[339183677,1727277313797,500.0,0.00021999,120]
[339183679,1727277313907,500.0,0.00021999,120]
[339183682,1727277314457,500.0,0.00021999,120]
[339183685,1727277314798,500.0,0.00021999,120]
[339183687,1727277315105,568.11948446,0.00021999,120]
[339183717,1727277323680,500.0,0.00021999,120]
[339183718,1727277323747,500.0,0.00021999,120]
[339183727,1727277326512,500.0,0.00021999,120]
[339183728,1727277326870,500.0,0.00021999,120]
[339183759,1727277332586,500.0,0.00021999,120]
[339183761,1727277332913,500.0,0.00021999,120]
[339183799,1727277341159,500.0,0.00021999,120]
[339183800,1727277341475,500.0,0.00021999,120]
[339183803,1727277341795,227.26897841,0.00021999,120]
[339183815,1727277344985,500.0,0.00021999,120]
[339183820,1727277345294,500.0,0.00021999,120]
[339183829,1727277348570,500.0,0.00021999,120]
[339183832,1727277351194,1000.0,0.00021999,120]
[339183833,1727277351516,1000.0,0.00021999,120]
[339183834,1727277351820,1000.0,0.00021999,120]
[339183835,1727277352166,1000.0,0.00021999,120]
[339183837,1727277352482,1000.0,0.00021999,120]
[339183839,1727277352774,1000.0,0.00021999,120]
[339183842,1727277353098,1000.0,0.00021999,120]
[339183844,1727277353417,1000.0,0.00021999,120]
[339183846,1727277353717,994.45687893,0.00021999,120]
[339183957,1727277369643,500.0,0.00021999,120]
[339183960,1727277369954,500.0,0.00021999,120]
[339183964,1727277370273,500.0,0.00021999,120]
[339184070,1727277382268,472.10049218,0.00021999,120]
[339184084,1727277385936,500.0,0.00021999,120]
[339184088,1727277386268,500.0,0.00021999,120]
[339184092,1727277386595,500.0,0.00021999,120]
[339184204,1727277395273,500.0,0.00021999,120]
[339184209,1727277395589,500.0,0.00021999,120]
[339184213,1727277395911,500.0,0.00021999,120]
[339184253,1727277401315,500.0,0.00021999,120]
[339184255,1727277401646,500.0,0.00021999,120]
[339184256,1727277401975,500.0,0.00021999,120]
[339184257,1727277402313,500.0,0.00021999,120]
[339184258,1727277402547,500.0,0.00021999,120]
[339184259,1727277402652,500.0,0.00021999,120]
[339184260,1727277402867,500.0,0.00021999,120]
[339184261,1727277402958,500.0,0.00021999,120]
[339184262,1727277403189,500.0,0.00021999,120]
[339184263,1727277403319,500.0,0.00021999,120]
[339184268,1727277404332,500.0,0.00021999,120]
[339184270,1727277404417,500.0,0.00021999,120]
[339184273,1727277404755,500.0,0.00021999,120]
[339184275,1727277405082,500.0,0.00021999,120]
[339184278,1727277405435,500.0,0.00021999,120]
[339184279,1727277405759,500.0,0.00021999,120]
[339184283,1727277406078,197.01306842,0.00021999,120]
[339184318,1727277410356,500.0,0.00021999,120]
[339184321,1727277410678,500.0,0.00021999,120]
[339184326,1727277411014,500.0,0.00021999,120]
[339184405,1727277419852,273.31,0.00021999,120]
[339184408,1727277420208,273.31,0.00021999,120]
[339184411,1727277420530,273.31,0.00021999,120]
[339184414,1727277420861,273.31,0.00021999,120]
[339184417,1727277421166,273.31,0.00021999,120]
[339184421,1727277421837,273.31,0.00021999,120]
[339184424,1727277422163,273.31,0.00021999,120]
[339184426,1727277422487,273.31,0.00021999,120]
[339184428,1727277422819,273.31,0.00021999,120]
[339184430,1727277423158,273.31,0.00021999,120]
[339184434,1727277423846,273.31,0.00021999,120]
[339184438,1727277424205,273.31,0.00021999,120]
[339184443,1727277424527,273.31,0.00021999,120]
[339184459,1727277425939,273.31,0.00021999,120]
[339184462,1727277426283,273.31,0.00021999,120]
[339184467,1727277426664,273.31,0.00021999,120]
[339184470,1727277427005,273.31,0.00021999,120]
[339184477,1727277427361,273.31,0.00021999,120]
[339184481,1727277427687,273.31,0.00021999,120]
[339184484,1727277428004,273.31,0.00021999,120]
[339184487,1727277428337,273.31,0.00021999,120]
[339184489,1727277428649,273.31,0.00021999,120]
[339184492,1727277429027,273.31,0.00021999,120]
[339184495,1727277429369,273.54824589,0.00021999,120]
[339184528,1727277432970,153.47,0.00010959,2]
[339184775,1727277464449,162.3,9.589e-05,2]
[339185001,1727277499509,500.0,0.00021999,120]
[339185008,1727277499950,500.0,0.00021999,120]
[339185013,1727277500302,500.0,0.00021999,120]
[339185018,1727277500599,356.87957152,0.00021999,120]
[339185039,1727277502582,500.0,0.00021999,120]
[339185044,1727277502930,339.44736616,0.00021999,120]
[339185112,1727277509700,958.5,0.00021999,120]
[339185115,1727277510015,958.5,0.00021999,120]
[339185118,1727277510321,958.5,0.00021999,120]
[339185121,1727277510612,958.5,0.00021999,120]
[339185123,1727277510974,500.0,0.00021999,120]
[339185124,1727277511041,958.5,0.00021999,120]
[339185126,1727277511322,958.5,0.00021999,120]
[339185127,1727277511376,500.0,0.00021999,120]
[339185129,1727277511608,958.5,0.00021999,120]
[339185130,1727277511812,500.0,0.00021999,120]
[339185132,1727277511946,958.5,0.00021999,120]
[339185133,1727277512112,615.23755235,0.00021999,120]
[339185135,1727277512258,958.5,0.00021999,120]
[339185137,1727277512556,958.5,0.00021999,120]
[339185140,1727277512853,958.5,0.00021999,120]
[339185143,1727277513206,958.5,0.00021999,120]
[339185147,1727277513513,958.5,0.00021999,120]
[339185150,1727277513808,958.5,0.00021999,120]
[339185154,1727277514112,958.5,0.00021999,120]
[339185161,1727277514622,958.5,0.00021999,120]
[339185166,1727277514933,958.5,0.00021999,120]
[339185168,1727277515239,958.5,0.00021999,120]
[339185172,1727277515543,958.5,0.00021999,120]
[339185175,1727277515909,958.5,0.00021999,120]
[339185180,1727277516243,958.5,0.00021999,120]
[339185184,1727277516589,958.5,0.00021999,120]
[339185187,1727277516895,958.5,0.00021999,120]
[339185189,1727277517210,958.72552258,0.00021999,120]
[339185248,1727277525544,308.53864249,0.00022,120]
[339185322,1727277535834,555.4633768,0.00021999,120]
[339185383,1727277546958,150.0,1.18e-05,2]
[339185629,1727277572432,694.45,0.00021999,120]
[339185631,1727277572716,694.45,0.00021999,120]
[339185633,1727277573053,694.45,0.00021999,120]
[339185636,1727277573724,694.45,0.00021999,120]
[339185639,1727277574140,694.45,0.00021999,120]
[339185641,1727277574554,694.45,0.00021999,120]
[339185646,1727277575202,694.45,0.00021999,120]
[339185649,1727277575517,694.45,0.00021999,120]
[339185651,1727277575824,694.45,0.00021999,120]
[339185653,1727277576133,694.45,0.00021999,120]
[339185656,1727277576471,694.45,0.00021999,120]
[339185657,1727277576783,694.45,0.00021999,120]
[339185659,1727277577106,694.45,0.00021999,120]
[339185661,1727277577489,694.45,0.00021999,120]
[339185663,1727277577826,694.45,0.00021999,120]
[339185666,1727277578457,694.45,0.00021999,120]
[339185667,1727277578520,694.45,0.00021999,120]
[339185669,1727277578754,694.45,0.00021999,120]
[339185671,1727277579071,694.45,0.00021999,120]
[339185674,1727277579740,694.45,0.00021999,120]
[339185676,1727277580055,694.45,0.00021999,120]
[339185678,1727277580371,694.45,0.00021999,120]
[339185681,1727277580683,694.45,0.00021999,120]
[339185684,1727277580984,694.45,0.00021999,120]
[339185965,1727277632603,500.0,0.00021999,120]
[339186327,1727277696118,-150.0,0.00011105,2]
[339186329,1727277696261,-0.37,0.00011105,2]
[339186443,1727277721360,248.63,0.00013918,30]
[339186510,1727277739499,500.0,0.00021999,120]
[339186512,1727277739797,500.0,0.00021999,120]
[339186513,1727277740166,500.0,0.00021999,120]
[339186515,1727277740478,500.0,0.00021999,120]
[339186517,1727277740795,500.0,0.00021999,120]
[339186561,1727277747837,355.3197562,0.00021999,120]
[339186760,1727277801055,339.72,9.575e-05,2]
[339186773,1727277820243,1300.77,0.00021999,120]
[339186774,1727277820577,1300.77,0.00021999,120]
[339186775,1727277820926,1300.77,0.00021999,120]
[339186776,1727277821275,1300.77,0.00021999,120]
[339186777,1727277821626,1300.77,0.00021999,120]
[339186778,1727277821973,1300.77,0.00021999,120]
[339186780,1727277822375,1300.77,0.00021999,120]
[339186782,1727277822705,1300.77,0.00021999,120]
[339186783,1727277823041,1300.77,0.00021999,120]
[339186784,1727277823744,1300.77,0.00021999,120]
[339186785,1727277824142,1300.77,0.00021999,120]
[339186786,1727277824709,1300.77,0.00021999,120]
[339186787,1727277825055,1300.77,0.00021999,120]
[339186788,1727277825396,1300.77,0.00021999,120]
[339186789,1727277825766,1300.77,0.00021999,120]
[339186790,1727277826128,1300.77,0.00021999,120]
[339186791,1727277826482,1300.77,0.00021999,120]
[339186794,1727277826808,1300.77,0.00021999,120]
[339186798,1727277827245,1300.77,0.00021999,120]
[339186801,1727277827576,1300.77,0.00021999,120]
[339186802,1727277827914,1300.77,0.00021999,120]
[339186803,1727277828262,1300.77,0.00021999,120]
[339186804,1727277828631,1300.77,0.00021999,120]
[339186805,1727277829021,1300.965076,0.00021999,120]
[339186811,1727277836063,500.0,0.00021999,120]
[339186812,1727277836366,356.67884095,0.00021999,120]
[339186838,1727277906402,500.00000015,0.00021999,120]
[339186840,1727277929231,150.0,0.000101,2]
[339186841,1727277929255,37991.89286781,0.000101,2]
[339186877,1727277954537,150.0,6.94e-05,2]
[339186878,1727277954562,150.0,6.94e-05,2]
[339186879,1727277954583,150.0,6.94e-05,2]
[339186880,1727277954604,150.0,6.94e-05,2]
[339186881,1727277954625,150.0,6.94e-05,2]
[339186882,1727277954645,150.0,6.94e-05,2]
[339186883,1727277954665,150.0,6.94e-05,2]
[339186884,1727277954686,150.0,6.94e-05,2]
[339186885,1727277954707,268.31623694,6.94e-05,2]
[339186886,1727277954730,663.59376306,6.94e-05,2]
[339186887,1727277960109,508.06288874,0.00021999,120]
[339186888,1727277963004,150.0,0.00010959,2]
[339186889,1727277963028,25.45,0.00010959,2]
[339186890,1727277976618,520.19231959,0.00021999,120]
[339186891,1727277981887,299.76686752,0.00010082,2]
[339186892,1727277981911,300.23313248,0.00010082,2]
[339186893,1727277982398,500.0,0.00010082,2]
[339186951,1727278205291,150.02,0.000111,2]
[339186957,1727278232396,-150.02,0.00011272,2]
[339186958,1727278232407,-250.0,0.00011282,2]
[339186959,1727278232416,-193.37,0.00011343,2]
[339186960,1727278232426,-900.0,0.00011352,2]
[339186961,1727278232436,-242.03,0.00011406,2]
[339186962,1727278232446,-803.11677235,0.00011436,2]
[339186963,1727278232463,-139.20322765,0.00011436,2]
[339186964,1727278232477,-600.0,0.00011452,2]
[339186965,1727278232487,-150.02,0.00011452,2]
[339186966,1727278232497,-150.02,0.00011461,2]
[339186967,1727278232507,-150.02,0.00011461,2]
[339186968,1727278232519,-150.02,0.00011461,2]
[339186969,1727278232531,-150.02,0.00011461,2]
[339186970,1727278232541,-1000.0,0.00011462,2]
[339186971,1727278232551,-4289.17501568,0.00011471,2]
[339186972,1727278232563,-19610.82498432,0.00011471,2]
[339186973,1727278232573,-2491.72,0.00011471,2]
[339186974,1727278232584,-3120.08,0.00011475,2]
[339186975,1727278232594,-156.55,0.00011499,2]
[339186976,1727278232604,-1500.0,0.00011501,2]
[339186977,1727278232618,-150.0,0.00011507,2]
[339186978,1727278232629,-790.19,0.00011507,2]
[339186979,1727278232639,-250.0,0.00011518,2]
[339186980,1727278232649,-499.99,0.00011518,2]
[339186981,1727278232658,-442.05,0.00011518,2]
[339186982,1727278232669,-154.01,0.00011518,3]
[339186983,1727278232679,-470.27,0.00011558,2]
[339186984,1727278232689,-150.0,0.00011688,2]
[339186985,1727278232699,-150.0,0.00011688,2]
[339186986,1727278232709,-150.0,0.00011688,2]
[339186987,1727278232718,-151.55024572,0.00011688,2]
[339186988,1727278232728,-151.18089716,0.00011688,2]
[339186989,1727278232738,-150.66099431,0.00011688,2]
[339186990,1727278232748,-250.0,0.00011753,2]
[339186991,1727278232759,-339.72,0.00011839,2]
[339186992,1727278232768,-150.0,0.00011989,2]
[339186993,1727278232779,-4745.202484,0.0001199,2]
[339186994,1727278232790,-9000.0,0.00012,2]
[339186995,1727278232799,-422.95,0.00012055,2]
[339186996,1727278232809,-422.95,0.00012055,2]
[339186997,1727278232819,-422.95,0.00012055,2]
[339186998,1727278232830,-422.95,0.00012055,2]
[339186999,1727278232843,-422.95,0.00012055,2]
[339187000,1727278232853,-940.45,0.00012055,2]
[339187001,1727278232864,-5683.94471305,0.00012055,2]
[339187002,1727278232876,-2475.883476,0.00012055,2]
[339187003,1727278232887,-4612.82411465,0.00012055,2]
[339187004,1727278232899,-698.8928266,0.00012055,2]
[339187005,1727278232911,-3638.8748697,0.00012055,2]
[339187006,1727278232921,-300.0,0.00012192,2]
[339187007,1727278232932,-162.571253,0.00012287,2]
[339187008,1727278232941,-359.389269,0.00012287,2]
[339187009,1727278232952,-4017.4951,0.00012376,2]
[339187010,1727278232962,-359.389269,0.0001244,2]
[339187011,1727278232972,-167.26,0.00012445,2]
[339187012,1727278232982,-1203.038,0.00012476,2]
[339187013,1727278232993,-21155.8151,0.00012476,2]
[339187014,1727278233003,-1000.0,0.00012476,2]
[339187015,1727278233013,-282.35390266,0.00012512,2]
[339187016,1727278233024,-359.389269,0.00012594,2]
[339187017,1727278233059,-298.16768616,0.00012695,2]
[339187018,1727278233075,-151.29,0.00012713,2]
[339187019,1727278233085,-359.389269,0.00012747,2]
[339187020,1727278233096,-606.4471,0.000128,2]
[339187021,1727278233107,-7500.0,0.000128,2]
[339187022,1727278233117,-1014.32,0.000128,2]
[339187023,1727278233127,-6008.80627944,0.000128,2]
[339187024,1727278233138,-6008.80627942,0.00012811,2]
[339187025,1727278233148,-500.0,0.00012822,2]
[339187026,1727278233159,-600.0,0.00012822,2]
[339187027,1727278233169,-6008.80627942,0.00012822,2]
[339187028,1727278233179,-6008.80627942,0.00012833,2]
[339187029,1727278233190,-6008.80627942,0.00012844,2]
[339187030,1727278233200,-6008.80627942,0.00012856,2]
[339187031,1727278233211,-6008.80627942,0.00012867,2]
[339187032,1727278233223,-980.40844786,0.0001287,2]
[339187033,1727278233234,-6008.80627942,0.00012878,2]
[339187034,1727278233246,-14780.29,0.00012888,2]
[339187035,1727278233257,-6008.80627942,0.00012889,2]
[339187036,1727278233268,-1000.0,0.00012895,2]
[339187037,1727278233579,-500.0,0.00012896,2]
[339187038,1727278233606,-23940.27049882,0.000129,2]
[339187039,1727278233620,-52844.276741,0.000129,2]
[339187040,1727278233633,-397.92779334,0.000129,2]
[339187041,1727278233645,-1649.09184316,0.000129,2]
[339187042,1727278233657,-719.4241955,0.000129,2]
[339187043,1727278233669,-3125.27043744,0.000129,2]
[339187044,1727278233681,-478.59396333,0.000129,2]
[339187045,1727278233698,-365.35210606,0.000129,2]
[339187046,1727278233710,-5202.81381269,0.000129,2]
[339187055,1727278239819,-222.88946008,0.000128,2]
[339187057,1727278239831,-444.68123174,0.000129,2]
[339187058,1727278239847,-1101.02903969,0.000129,2]
[339187059,1727278239860,-9427.61663723,0.000129,2]
[339187060,1727278239871,-1422.4903,0.000129,2]
[339187061,1727278239883,-3009.8967,0.000129,2]
[339187062,1727278239894,-1588.6922,0.000129,2]
[339187063,1727278239904,-2418.63,0.000129,2]
[339187064,1727278239916,-158.10949927,0.000129,2]
[339187065,1727278239926,-250.29,0.000129,2]
[339187066,1727278239936,-166.77969171,0.000129,2]
[339187067,1727278239946,-166.77969171,0.000129,2]
[339187068,1727278239955,-166.77969171,0.000129,2]
[339187069,1727278239965,-166.77969171,0.000129,2]
[339187070,1727278239975,-166.77969171,0.000129,2]
[339187071,1727278239985,-167.27,0.000129,2]
[339187072,1727278239995,-208.14,0.000129,2]
[339187073,1727278240004,-264.56,0.000129,2]
[339187074,1727278240014,-13123.66619734,0.000129,2]
[339187075,1727278240024,-306.47969816,0.000129,2]
[339187076,1727278240035,-6008.80627942,0.000129,2]
[339187077,1727278240045,-361.33023562,0.000129,2]
[339187078,1727278240055,-359.389269,0.00012901,2]
[339187079,1727278240066,-313.694,0.00012928,2]
[339187080,1727278240076,-193.27,0.00012928,2]
[339187081,1727278240087,-1213.692,0.0001294,2]
[339187082,1727278240096,-150.0,0.0001294,2]
[339187083,1727278240105,-1219.39,0.0001294,2]
[339187084,1727278240116,-161.24881267,0.00012973,2]
[339187085,1727278240126,-500.0,0.00012973,2]
[339187086,1727278240135,-500.0,0.00012973,2]
[339187087,1727278240144,-150.18,0.0001299,2]
[339187088,1727278240155,-150.18,0.0001299,2]
[339187089,1727278240165,-150.18,0.0001299,2]
[339187090,1727278240176,-150.18,0.0001299,2]
[339187091,1727278240186,-150.18,0.0001299,2]
[339187092,1727278240197,-150.18,0.0001299,2]
[339187093,1727278240207,-150.18,0.0001299,2]
[339187095,1727278240218,-150.18,0.0001299,2]
[339187096,1727278240228,-150.18,0.0001299,2]
[339187097,1727278240238,-150.18,0.0001299,2]
[339187098,1727278240248,-150.18,0.0001299,2]
[339187099,1727278240259,-150.18,0.0001299,2]
[339187100,1727278240269,-150.18,0.0001299,2]
[339187101,1727278240279,-150.18,0.0001299,2]
[339187102,1727278240294,-150.18,0.0001299,2]
[339187103,1727278240304,-150.18,0.0001299,2]
[339187104,1727278240314,-15835.11923616,0.00012998,2]
[339187105,1727278240323,-500.0,0.00012999,2]
[339187106,1727278240333,-500.0,0.00012999,2]
[339187108,1727278240344,-4094.11732211,0.00012999,2]
[339187110,1727278240353,-500.0,0.00012999,2]
[339187111,1727278240363,-500.0,0.00012999,2]
[339187112,1727278240374,-460.63569441,0.00012999,2]
[339187113,1727278240384,-520.0,0.00012999,2]
[339187114,1727278240394,-55763.72634036,0.00013,2]
[339187115,1727278240406,-2212.02777319,0.00013,2]
[339187116,1727278240418,-1661.3736236,0.00013,2]
[339187117,1727278240430,-859.48463411,0.00013,2]
[339187118,1727278240442,-32234.58733742,0.00013,2]
[339187119,1727278240454,-811.46324544,0.00013,2]
[339187120,1727278240466,-4785.7008857,0.00013,2]
[339187121,1727278240479,-283.55847122,0.00013,2]
[339187122,1727278240493,-3525.86554151,0.00013,2]
[339187123,1727278240506,-7082.35051429,0.00013,2]
[339187124,1727278240519,-312.62536333,0.00013,2]
[339187125,1727278240534,-424.88308538,0.00013,2]
[339187126,1727278240547,-500.0,0.00013,2]
[339187127,1727278240558,-2976.02181235,0.00013,2]
[339187128,1727278240570,-69206.29164798,0.00013,2]
[339187129,1727278240588,-1153.0,0.00013,2]
[339187130,1727278240600,-12759.24509833,0.00013,2]
[339187131,1727278240614,-12608.96321469,0.00013,2]
[339187132,1727278240626,-2879.43368562,0.00013,2]
[339187133,1727278240708,-270.59,0.00013,2]
[339187134,1727278240719,-496.07624443,0.00013,2]
[339187135,1727278240737,-328.47396994,0.00013,2]
[339187136,1727278240749,-5307.9,0.00013,2]
[339187137,1727278240760,-711.24,0.00013,2]
[339187138,1727278240772,-1272.50451953,0.00013,2]
[339187139,1727278240786,-492.32737984,0.00013,2]
[339187140,1727278240798,-1060.86500547,0.00013,2]